{"text_format":"2","workbook":"xlsx","n_sheets":1,"sheets":["Sheet1"],"not_rendered":{"charts":0,"images":2,"macros":0,"external_links":2,"defined_names":2,"comments":0,"pivot_tables":0},"unopened":[],"bounds":{"document_bytes":16777216,"sheet_cells":100000,"run_cost":"one","rows_first":2000,"rows_last":500,"rows_between":2000,"halvings":0,"cell_chars":16384,"cell_head_chars":4096},"cells_cut":0,"cells_raw":0,"read":"whole","date_system":"1900"}

{"sheet":"Sheet1","index":0,"n_rows":77,"n_cols":10,"rows_kept":77,"cut":false,"hidden":false,"merged":[[0,0,0,6],[6,0,6,9],[5,0,5,9],[4,0,4,9],[3,0,3,9],[2,0,2,9],[1,0,1,9]]}
[]
["DIRECCIÓN GENERAL DE RECURSOS HUMANOS"]
["Concurso para Ingreso y Promoción de Personas"]
["CIRCUNSCRIPCIÓN JUDICIAL DE PARAGUARÍ"]
["LLAMADO A CONCURSO N° 227/2023"]
["Cargo:  Ujier Notificador II para Juzgado de Paz"]
["RESULTADOS FINALES"]
["N°","Apellidos","Nombres","C.I. N°","Verificación Documental (Etapa 1)","Evaluación Curricular  (Etapa 2) 30 puntos (50%=15 ptos)","Evaluación de Conocimientos (Etapa 3) 50 puntos (60%= 30 ptos)","Evaluación de Aptitudes Psicológicas (Etapa 4) 20 ptos.","Puntaje Total 100 ptos.","Observaciones"]
[1,"ENCISO DELVALLE","TANIA TAMARA ",4727805,"APROBADO",28,45,{"$f":"VLOOKUP($D9,'[1]CAARGOS CON 20 PUNTOS'!$D$9:$E$272,2,)","v":18},{"$f":"IF(OR(G9=\"AUSENTE\",G9=\"FRAUDE\"),0,F9+G9+H9)","v":91},{"$f":"IFERROR(VLOOKUP(D9,[2]!ganadoresparaguari[],4,FALSE),\"\")","v":"Ganador del  N° 222/23 Paraguari"}]
[2,"RECALDE CABALLERO","GLORIA NOEMI",4047086,"APROBADO",30,43,{"$f":"VLOOKUP($D10,'[1]CAARGOS CON 20 PUNTOS'!$D$9:$E$272,2,)","v":18},91,{"$f":"IFERROR(VLOOKUP(D10,[2]!ganadoresparaguari[],4,FALSE),\"\")","v":"Ganador del  N° 222/23 Paraguari"}]
[3,"JARA SANTACRUZ","MARÍA LAURA",4925738,"APROBADO",28,44,{"$f":"VLOOKUP($D11,'[1]CAARGOS CON 20 PUNTOS'!$D$9:$E$272,2,)","v":18},90,{"$f":"IFERROR(VLOOKUP(D11,[2]!ganadoresparaguari[],4,FALSE),\"\")","v":"Ganador del  N° 215/23 Paraguari"}]
[4,"SOSA BARRIENTOS","ELIDA NATALIA",5078397,"APROBADO",18,50,{"$f":"VLOOKUP($D12,'[1]CAARGOS CON 20 PUNTOS'!$D$9:$E$272,2,)","v":18},86,{"$f":"IFERROR(VLOOKUP(D12,[2]!ganadoresparaguari[],4,FALSE),\"\")","v":" "}]
[5,"JARA SANTACRUZ ","MARIA LETICIA ",4925739,"APROBADO",28,36,{"$f":"VLOOKUP($D13,'[1]CAARGOS CON 20 PUNTOS'!$D$9:$E$272,2,)","v":19},83,{"$f":"IFERROR(VLOOKUP(D13,[2]!ganadoresparaguari[],4,FALSE),\"\")","v":"Ganador del  N° 210/23 Paraguari"}]
[6,"SANTACRUZ BRIZUELA ","LORENA NATALIA ",5417599,"APROBADO",28,38,{"$f":"VLOOKUP($D14,'[1]CAARGOS CON 20 PUNTOS'!$D$9:$E$272,2,)","v":17},83,{"$f":"IFERROR(VLOOKUP(D14,[2]!ganadoresparaguari[],4,FALSE),\"\")","v":"Ganador del  N° 227/23 Paraguari"}]
[7,"ALONSO MEDINA","VICENTA LUCIA",4004619,"APROBADO",26,39,{"$f":"VLOOKUP($D15,'[1]CAARGOS CON 20 PUNTOS'!$D$9:$E$272,2,)","v":15},80,{"$f":"IFERROR(VLOOKUP(D15,[2]!ganadoresparaguari[],4,FALSE),\"\")","v":""}]
[8,"GIMÉNEZ DE ARÉVALOS","BÁRBARA ",4516679,"APROBADO",26,37,{"$f":"VLOOKUP($D16,'[1]CAARGOS CON 20 PUNTOS'!$D$9:$E$272,2,)","v":17},80,{"$f":"IFERROR(VLOOKUP(D16,[2]!ganadoresparaguari[],4,FALSE),\"\")","v":""}]
[9,"GONZALEZ CORONEL ","MARIA ASUNCION ",5228739,"APROBADO",30,33,{"$f":"VLOOKUP($D17,'[1]CAARGOS CON 20 PUNTOS'!$D$9:$E$272,2,)","v":17},80,{"$f":"IFERROR(VLOOKUP(D17,[2]!ganadoresparaguari[],4,FALSE),\"\")","v":"Ganador del  N° 227/23 Paraguari"}]
[10,"DA SILVA DOSANTO","ROSENI",5075071,"APROBADO",18,43,{"$f":"VLOOKUP($D18,'[1]CAARGOS CON 20 PUNTOS'!$D$9:$E$272,2,)","v":17},78,{"$f":"IFERROR(VLOOKUP(D18,[2]!ganadoresparaguari[],4,FALSE),\"\")","v":""}]
[11,"VIERA ARNOLD","SADY GISSELLE",4023647,"APROBADO",28,30,{"$f":"VLOOKUP($D19,'[1]CAARGOS CON 20 PUNTOS'!$D$9:$E$272,2,)","v":18},76,{"$f":"IFERROR(VLOOKUP(D19,[2]!ganadoresparaguari[],4,FALSE),\"\")","v":""}]
[12,"ZELAYA","VERÓNICA ELIZABETH",5298553,"APROBADO",28,30,{"$f":"VLOOKUP($D20,'[1]CAARGOS CON 20 PUNTOS'!$D$9:$E$272,2,)","v":18},76,{"$f":"IFERROR(VLOOKUP(D20,[2]!ganadoresparaguari[],4,FALSE),\"\")","v":""}]
[13,"LEGUIZAMON MEDINA","CLAUDIA LILIANA",5395083,"APROBADO",28,30,{"$f":"VLOOKUP($D21,'[1]CAARGOS CON 20 PUNTOS'!$D$9:$E$272,2,)","v":17},75,{"$f":"IFERROR(VLOOKUP(D21,[2]!ganadoresparaguari[],4,FALSE),\"\")","v":""}]
[14,"MAIDANA BENÍTEZ ","BLANCA NOEMI",5351782,"APROBADO",18,39,{"$f":"VLOOKUP($D22,'[1]CAARGOS CON 20 PUNTOS'!$D$9:$E$272,2,)","v":17},74,{"$f":"IFERROR(VLOOKUP(D22,[2]!ganadoresparaguari[],4,FALSE),\"\")","v":""}]
[15,"AGUIRRE JARA","ÁMBAR MILENA",6514542,"APROBADO",20,39,{"$f":"VLOOKUP($D23,'[1]CAARGOS CON 20 PUNTOS'!$D$9:$E$272,2,)","v":14},73,{"$f":"IFERROR(VLOOKUP(D23,[2]!ganadoresparaguari[],4,FALSE),\"\")","v":""}]
[16,"GONZÁLEZ MEZA ","DELMI BEATRIZ ",5748450,"APROBADO",22,35,{"$f":"VLOOKUP($D24,'[1]CAARGOS CON 20 PUNTOS'!$D$9:$E$272,2,)","v":16},73,{"$f":"IFERROR(VLOOKUP(D24,[2]!ganadoresparaguari[],4,FALSE),\"\")","v":""}]
[17,"QUIZAMÁS MARECOS","LORENA",6739033,"APROBADO",24,31,{"$f":"VLOOKUP($D25,'[1]CAARGOS CON 20 PUNTOS'!$D$9:$E$272,2,)","v":17},72,{"$f":"IFERROR(VLOOKUP(D25,[2]!ganadoresparaguari[],4,FALSE),\"\")","v":"Ganador del  N° 210/23 Paraguari"}]
[18,"CARDOZO FARIÑA","EVELIN JANET",4259789,"APROBADO",18,36,{"$f":"VLOOKUP($D26,'[1]CAARGOS CON 20 PUNTOS'!$D$9:$E$272,2,)","v":15},69,{"$f":"IFERROR(VLOOKUP(D26,[2]!ganadoresparaguari[],4,FALSE),\"\")","v":""}]
[19,"ARRUA BENITEZ","ARTURO DANIEL ",4875211,"APROBADO",18,31,{"$f":"VLOOKUP($D27,'[1]CAARGOS CON 20 PUNTOS'!$D$9:$E$272,2,)","v":15},64,{"$f":"IFERROR(VLOOKUP(D27,[2]!ganadoresparaguari[],4,FALSE),\"\")","v":""}]
[20,"ESPILLAGA","DEISY ARACELI",3970298,"APROBADO",16,32,{"$f":"VLOOKUP($D28,'[1]CAARGOS CON 20 PUNTOS'!$D$9:$E$272,2,)","v":15},63,{"$f":"IFERROR(VLOOKUP(D28,[2]!ganadoresparaguari[],4,FALSE),\"\")","v":""}]
[21,"SOTELO CABALLERO ","GABRIELA ELIZABETH ",4861108,"APROBADO",28,28,0,56,{"$f":"IFERROR(VLOOKUP(D29,[2]!ganadoresparaguari[],4,FALSE),\"\")","v":""}]
[22,"GALEANO GUERRERO","NILDA GRACIELA",2362647,"APROBADO",28,24,0,52,{"$f":"IFERROR(VLOOKUP(D30,[2]!ganadoresparaguari[],4,FALSE),\"\")","v":"Ganador del  N° 210/23 Paraguari"}]
[23,"GARCETE SEQUERA","OSCAR DANIEL",4376401,"APROBADO",28,21,0,49,{"$f":"IFERROR(VLOOKUP(D31,[2]!ganadoresparaguari[],4,FALSE),\"\")","v":""}]
[24,"MARTÍNEZ DE CABRERA","LILIANA",3186542,"APROBADO",26,23,0,49,{"$f":"IFERROR(VLOOKUP(D32,[2]!ganadoresparaguari[],4,FALSE),\"\")","v":""}]
[25,"MONTIEL ADORNO ","SALVIO RODRIGO",4522836,"APROBADO",28,21,0,49,{"$f":"IFERROR(VLOOKUP(D33,[2]!ganadoresparaguari[],4,FALSE),\"\")","v":""}]
[26,"ILLA DURE","TAMARA MONSERRATH ",6228463,"APROBADO",20,28,0,48,{"$f":"IFERROR(VLOOKUP(D34,[2]!ganadoresparaguari[],4,FALSE),\"\")","v":""}]
[27,"BENITEZ AGUAYO","SONIA BUENAVENTURA",4715009,"APROBADO",24,23,0,47,{"$f":"IFERROR(VLOOKUP(D35,[2]!ganadoresparaguari[],4,FALSE),\"\")","v":""}]
[28,"BOBADILLA INSFRAN","ENZO DANIEL",5015989,"APROBADO",18,28,0,46,{"$f":"IFERROR(VLOOKUP(D36,[2]!ganadoresparaguari[],4,FALSE),\"\")","v":""}]
[29,"MARECOS CONTRERAS","MILVA MARIBEL",6715965,"APROBADO",24,22,0,46,{"$f":"IFERROR(VLOOKUP(D37,[2]!ganadoresparaguari[],4,FALSE),\"\")","v":""}]
[30,"SANCHEZ MEDINA","MARIA NATALIA",4002187,"APROBADO",18,28,0,46,{"$f":"IFERROR(VLOOKUP(D38,[2]!ganadoresparaguari[],4,FALSE),\"\")","v":""}]
[31,"MIRANDA SOSA","PRISCILA GISSELLE",3551563,"APROBADO",18,27,0,45,{"$f":"IFERROR(VLOOKUP(D39,[2]!ganadoresparaguari[],4,FALSE),\"\")","v":""}]
[32,"MORENO DIAZ","ANALIA ELIZABETH",5476473,"APROBADO",26,18,0,44,{"$f":"IFERROR(VLOOKUP(D40,[2]!ganadoresparaguari[],4,FALSE),\"\")","v":""}]
[33,"MORÍNIGO GONZÁLEZ","FÁTIMA NOELIA",5242652,"APROBADO",18,26,0,{"$f":"IF(OR(G41=\"AUSENTE\",G41=\"FRAUDE\"),0,F41+G41+H41)","v":44},{"$f":"IFERROR(VLOOKUP(D41,[2]!ganadoresparaguari[],4,FALSE),\"\")","v":""}]
[34,"ALEGRE SOTO","DEISY MARLENE",4047305,"APROBADO",18,25,0,43,{"$f":"IFERROR(VLOOKUP(D42,[2]!ganadoresparaguari[],4,FALSE),\"\")","v":""}]
[35,"PORTILLO SERVIN","MARÍA LILIANA ",2266263,"APROBADO",24,19,0,43,{"$f":"IFERROR(VLOOKUP(D43,[2]!ganadoresparaguari[],4,FALSE),\"\")","v":""}]
[36,"ROA","YENY ELISABETH ",6628886,"APROBADO",18,25,0,43,{"$f":"IFERROR(VLOOKUP(D44,[2]!ganadoresparaguari[],4,FALSE),\"\")","v":""}]
[37,"CENTURIÓN ESCOBAR","ROSA MADELEINE",6027362,"APROBADO",18,23,0,41,{"$f":"IFERROR(VLOOKUP(D45,[2]!ganadoresparaguari[],4,FALSE),\"\")","v":"Ganador del  N° 210/23 Paraguari"}]
[38,"MORA DÍAZ","MARÍA ALODIA",3922990,"APROBADO",18,23,0,41,{"$f":"IFERROR(VLOOKUP(D46,[2]!ganadoresparaguari[],4,FALSE),\"\")","v":""}]
[39,"COLMAN YAHARI","LÍZ NATALIA ",5978612,"APROBADO",24,16,0,40,{"$f":"IFERROR(VLOOKUP(D47,[2]!ganadoresparaguari[],4,FALSE),\"\")","v":""}]
[40,"FERREIRA FERREIRA","LILIAN MARGARITA",4704782,"APROBADO",16,24,0,40,{"$f":"IFERROR(VLOOKUP(D48,[2]!ganadoresparaguari[],4,FALSE),\"\")","v":""}]
[41,"GAMARRA ROJAS","ESTEFANÍA ",5197127,"APROBADO",24,14,0,38,{"$f":"IFERROR(VLOOKUP(D49,[2]!ganadoresparaguari[],4,FALSE),\"\")","v":""}]
[42,"BRÍTEZ AGUERO","NILSA BEATRIZ",5456078,"APROBADO",18,19,0,37,{"$f":"IFERROR(VLOOKUP(D50,[2]!ganadoresparaguari[],4,FALSE),\"\")","v":""}]
[43,"LÓPEZ ","SILVIA LORENA ",7731147,"APROBADO",16,21,0,37,{"$f":"IFERROR(VLOOKUP(D51,[2]!ganadoresparaguari[],4,FALSE),\"\")","v":""}]
[44,"TORALES ALIENDRE","VICTOR JOEL ",4527893,"APROBADO",16,20,0,36,{"$f":"IFERROR(VLOOKUP(D52,[2]!ganadoresparaguari[],4,FALSE),\"\")","v":""}]
[45,"LEZCANO VILLASANTI","LAURA PATRICIA ASUNCION",6103737,"APROBADO",18,17,0,35,{"$f":"IFERROR(VLOOKUP(D53,[2]!ganadoresparaguari[],4,FALSE),\"\")","v":""}]
[46,"ROLÓN LÓPEZ","INGRID NATALIA",5233360,"APROBADO",18,17,0,35,{"$f":"IFERROR(VLOOKUP(D54,[2]!ganadoresparaguari[],4,FALSE),\"\")","v":""}]
[47,"BOGARÍN BOGADO","EVELIN FABIOLA ",5987711,"APROBADO",18,15,0,33,{"$f":"IFERROR(VLOOKUP(D55,[2]!ganadoresparaguari[],4,FALSE),\"\")","v":""}]
[48,"ACUÑA MIRANDA","MENCHI MELISSA",5563875,"APROBADO",18,"AUSENTE",0,0,{"$f":"IFERROR(VLOOKUP(D56,[2]!ganadoresparaguari[],4,FALSE),\"\")","v":""}]
[49,"ALCARAZ VIDAURRE","JAVIER ALESSANDRO",3728047,"APROBADO",20,"AUSENTE",0,0,{"$f":"IFERROR(VLOOKUP(D57,[2]!ganadoresparaguari[],4,FALSE),\"\")","v":""}]
[50,"CABALLERO BAEZ","ALBERTO ",4454605,"APROBADO",28,"AUSENTE",0,0,{"$f":"IFERROR(VLOOKUP(D58,[2]!ganadoresparaguari[],4,FALSE),\"\")","v":""}]
[51,"CACERES SANDER","JORGE DANIEL",4136313,"APROBADO",18,"AUSENTE",0,0,{"$f":"IFERROR(VLOOKUP(D59,[2]!ganadoresparaguari[],4,FALSE),\"\")","v":""}]
[52,"CHEDA RAMÍREZ","DIEGO AMILCAR",4317138,"APROBADO",30,"AUSENTE",0,0,{"$f":"IFERROR(VLOOKUP(D60,[2]!ganadoresparaguari[],4,FALSE),\"\")","v":""}]
[53,"DUARTE CABRERA ","VIVIANA ROCIÓ ",2365680,"APROBADO",28,"AUSENTE",0,0,{"$f":"IFERROR(VLOOKUP(D61,[2]!ganadoresparaguari[],4,FALSE),\"\")","v":""}]
[54,"FERREIRA ESPINOZA","MARIA LUISA",3871841,"APROBADO",18,"AUSENTE",0,0,{"$f":"IFERROR(VLOOKUP(D62,[2]!ganadoresparaguari[],4,FALSE),\"\")","v":""}]
[55,"FERREIRA LOPEZ ","IRMA NATALIA ",4215623,"APROBADO",18,"AUSENTE",0,0,{"$f":"IFERROR(VLOOKUP(D63,[2]!ganadoresparaguari[],4,FALSE),\"\")","v":""}]
[56,"FLECHA ROLDAN","ADRIANA JUDITH",4026893,"APROBADO",28,"AUSENTE",0,0,{"$f":"IFERROR(VLOOKUP(D64,[2]!ganadoresparaguari[],4,FALSE),\"\")","v":""}]
[57,"FRETES ROMÁN ","CAROLINA MONSERRAT ",5739965,"APROBADO",16,"AUSENTE",0,0,{"$f":"IFERROR(VLOOKUP(D65,[2]!ganadoresparaguari[],4,FALSE),\"\")","v":""}]
[58,"GAMARRA NOGUERA","CAYO RAFAEL",5067681,"APROBADO",16,"AUSENTE",0,0,{"$f":"IFERROR(VLOOKUP(D66,[2]!ganadoresparaguari[],4,FALSE),\"\")","v":""}]
[59,"LANDAIDA","CLARISSA DEL CARMEN ",4866648,"APROBADO",16,"AUSENTE",0,0,{"$f":"IFERROR(VLOOKUP(D67,[2]!ganadoresparaguari[],4,FALSE),\"\")","v":""}]
[60,"MACIEL GALVAN ","PERLA CONCEPCION",5395997,"APROBADO",16,"AUSENTE",0,0,{"$f":"IFERROR(VLOOKUP(D68,[2]!ganadoresparaguari[],4,FALSE),\"\")","v":"Ganador del  N° 229/23 Paraguari"}]
[61,"NOGUERA","CESAR HERNAN ",7052951,"APROBADO",18,"AUSENTE",0,0,{"$f":"IFERROR(VLOOKUP(D69,[2]!ganadoresparaguari[],4,FALSE),\"\")","v":"Ganador del  N° 220/23 Paraguari"}]
[62,"OJEDA GAONA","BARBARA MARLENE ",4217474,"APROBADO",15,"AUSENTE",0,0,{"$f":"IFERROR(VLOOKUP(D70,[2]!ganadoresparaguari[],4,FALSE),\"\")","v":""}]
[63,"ORTIZ VILLALBA ","MARIA BELEN ",4192528,"APROBADO",18,"AUSENTE",0,0,{"$f":"IFERROR(VLOOKUP(D71,[2]!ganadoresparaguari[],4,FALSE),\"\")","v":""}]
[64,"RAMÍREZ SOSA ","ROLANDO GABRIEL ",6039169,"APROBADO",20,"AUSENTE",0,0,{"$f":"IFERROR(VLOOKUP(D72,[2]!ganadoresparaguari[],4,FALSE),\"\")","v":""}]
[65,"RECALDE ROVEROS ","ELENA ROCIO",4945672,"APROBADO",18,"AUSENTE",0,{"$f":"IF(OR(G73=\"AUSENTE\",G73=\"FRAUDE\"),0,F73+G73+H73)","v":0},{"$f":"IFERROR(VLOOKUP(D73,[2]!ganadoresparaguari[],4,FALSE),\"\")","v":""}]
[66,"ROMÁN AMARILLA ","JUAN ANGEL",3576026,"APROBADO",16,"AUSENTE",0,0,{"$f":"IFERROR(VLOOKUP(D74,[2]!ganadoresparaguari[],4,FALSE),\"\")","v":""}]
[67,"VALDÉZ COLMAN","PATRICIO JULIAN",5278015,"APROBADO",16,"AUSENTE",0,0,{"$f":"IFERROR(VLOOKUP(D75,[2]!ganadoresparaguari[],4,FALSE),\"\")","v":""}]
[68,"VERA ORTIZ","SHIRLEY ELIZABETH",3615887,"APROBADO",18,"AUSENTE",0,0,{"$f":"IFERROR(VLOOKUP(D76,[2]!ganadoresparaguari[],4,FALSE),\"\")","v":""}]
[69,"VILLALBA QUINTANA","VICTOR JULIAN",4531948,"APROBADO",18,"AUSENTE",0,0,{"$f":"IFERROR(VLOOKUP(D77,[2]!ganadoresparaguari[],4,FALSE),\"\")","v":""}]